[Event "Late-Titled-Tuesday-Blitz-September-12-2023"]
[Site "Chess.com"]
[Date "2023.09.12"]
[Round "10"]
[White "IMRosen"]
[Black "Igor_Lysyj"]
[Result "0-1"]
[WhiteElo "2603"]
[BlackElo "2819"]
[TimeControl "180+1"]
[EndTime "15:53:10 PDT"]
[Termination "Igor_Lysyj won by checkmate"]

1. e4 {[%clk 0:03:00.9]} 1... e5 {[%clk 0:02:59.2]} 2. Nf3 {[%clk 0:03:00.8]}
2... Nc6 {[%clk 0:02:59.1]} 3. c3 {[%clk 0:03:01.4]} 3... d5 {[%clk 0:02:54.5]}
4. Qa4 {[%clk 0:03:01]} 4... Qd6 {[%clk 0:02:54.1]} 5. d4 {[%clk 0:02:52]} 5...
Bd7 {[%clk 0:02:52]} 6. Bb5 {[%clk 0:02:38]} 6... exd4 {[%clk 0:02:14]} 7. exd5
{[%clk 0:02:21.1]} 7... Qxd5 {[%clk 0:02:12.9]} 8. O-O {[%clk 0:02:18.5]} 8...
Bd6 {[%clk 0:02:02.4]} 9. cxd4 {[%clk 0:02:10.9]} 9... Nge7 {[%clk 0:01:50.2]}
10. Nc3 {[%clk 0:02:03.4]} 10... Qh5 {[%clk 0:01:50]} 11. d5 {[%clk 0:01:55.1]}
11... Nb8 {[%clk 0:01:47.2]} 12. Bxd7+ {[%clk 0:01:49]} 12... Nxd7 {[%clk
0:01:46.7]} 13. Re1 {[%clk 0:01:45.7]} 13... a6 {[%clk 0:01:38.4]} 14. Ne4
{[%clk 0:01:42.3]} 14... Qxd5 {[%clk 0:01:17.2]} 15. Nxd6+ {[%clk 0:01:26.2]}
15... cxd6 {[%clk 0:01:17.3]} 16. Bf4 {[%clk 0:01:19.4]} 16... b5 {[%clk
0:01:07.3]} 17. Qb4 {[%clk 0:01:13.1]} 17... Nc5 {[%clk 0:00:43.9]} 18. Rad1
{[%clk 0:00:56.7]} 18... Qc4 {[%clk 0:00:44]} 19. Qxc4 {[%clk 0:00:51.3]} 19...
bxc4 {[%clk 0:00:43.9]} 20. Rxe7+ {[%clk 0:00:43.4]} 20... Kxe7 {[%clk
0:00:43.8]} 21. Bxd6+ {[%clk 0:00:44.1]} 21... Ke6 {[%clk 0:00:43.9]} 22. Bxc5
{[%clk 0:00:44.1]} 22... Rhd8 {[%clk 0:00:44.1]} 23. Bd4 {[%clk 0:00:41.4]}
23... f6 {[%clk 0:00:42.6]} 24. Re1+ {[%clk 0:00:40.9]} 24... Kf7 {[%clk
0:00:42.6]} 25. Bc3 {[%clk 0:00:41.3]} 25... Rd5 {[%clk 0:00:40.4]} 26. g3
{[%clk 0:00:40.4]} 26... Rad8 {[%clk 0:00:39.3]} 27. Kg2 {[%clk 0:00:40.5]}
27... g5 {[%clk 0:00:34.5]} 28. Re4 {[%clk 0:00:37.3]} 28... Rc8 {[%clk
0:00:34.5]} 29. Nd2 {[%clk 0:00:35.7]} 29... Rdc5 {[%clk 0:00:31.9]} 30. Rd4
{[%clk 0:00:34.3]} 30... R8c7 {[%clk 0:00:29.2]} 31. Ne4 {[%clk 0:00:32.6]}
31... R5c6 {[%clk 0:00:29.4]} 32. Rd5 {[%clk 0:00:26.7]} 32... Kg6 {[%clk
0:00:29.4]} 33. g4 {[%clk 0:00:25.5]} 33... Re7 {[%clk 0:00:26.4]} 34. f3 {[%clk
0:00:23.1]} 34... h6 {[%clk 0:00:24.4]} 35. Kf2 {[%clk 0:00:22.5]} 35... Ree6
{[%clk 0:00:22.4]} 36. h3 {[%clk 0:00:22.4]} 36... h5 {[%clk 0:00:22.1]} 37. Rd8
{[%clk 0:00:21.3]} 37... h4 {[%clk 0:00:21.1]} 38. Rg8+ {[%clk 0:00:20.7]} 38...
Kf7 {[%clk 0:00:20.8]} 39. Rd8 {[%clk 0:00:21.6]} 39... Kg6 {[%clk 0:00:19.5]}
40. Rd5 {[%clk 0:00:22.3]} 40... Rb6 {[%clk 0:00:18.1]} 41. Ke3 {[%clk
0:00:22.2]} 41... Rb5 {[%clk 0:00:16.9]} 42. Rd4 {[%clk 0:00:21.6]} 42... f5
{[%clk 0:00:16.8]} 43. gxf5+ {[%clk 0:00:20.2]} 43... Rxf5 {[%clk 0:00:16.2]}
44. Rxc4 {[%clk 0:00:20.6]} 44... g4 {[%clk 0:00:15.6]} 45. fxg4 {[%clk
0:00:18.9]} 45... Rf1 {[%clk 0:00:15.4]} 46. Rc5 {[%clk 0:00:16.8]} 46... Rh1
{[%clk 0:00:14.5]} 47. Rg5+ {[%clk 0:00:16.6]} 47... Kf7 {[%clk 0:00:14.7]} 48.
Rf5+ {[%clk 0:00:10.9]} 48... Kg6 {[%clk 0:00:14.8]} 49. Rf3 {[%clk 0:00:11.4]}
49... Rh2 {[%clk 0:00:13.1]} 50. Kd3 {[%clk 0:00:10.8]} 50... Rg2 {[%clk
0:00:12.3]} 51. a4 {[%clk 0:00:09.1]} 51... Rg1 {[%clk 0:00:10.8]} 52. g5 {[%clk
0:00:08]} 52... Kh5 {[%clk 0:00:09.3]} 53. Rf6 {[%clk 0:00:04.5]} 53... Rxf6
{[%clk 0:00:08.1]} 54. gxf6 {[%clk 0:00:04.6]} 54... Kg6 {[%clk 0:00:07.2]} 55.
Ke3 {[%clk 0:00:04.2]} 55... Rh1 {[%clk 0:00:07.1]} 56. Nf2 {[%clk 0:00:04.3]}
56... Rg1 {[%clk 0:00:06.7]} 57. Kf3 {[%clk 0:00:04.2]} 57... Rg3+ {[%clk
0:00:06.6]} 58. Kf4 {[%clk 0:00:04.9]} 58... Rg2 {[%clk 0:00:06.7]} 59. Ng4
{[%clk 0:00:04.8]} 59... Rg3 {[%clk 0:00:06.5]} 60. Ne5+ {[%clk 0:00:05.3]}
60... Kxf6 {[%clk 0:00:06.8]} 61. Nf3+ {[%clk 0:00:05.3]} 61... Ke6 {[%clk
0:00:06.4]} 62. Nxh4 {[%clk 0:00:05.5]} 62... Rxh3 {[%clk 0:00:06.7]} 63. Nf3
{[%clk 0:00:06.3]} 63... Kd5 {[%clk 0:00:06.8]} 64. Nd2 {[%clk 0:00:05.8]} 64...
Rd3 {[%clk 0:00:05.6]} 65. Kf5 {[%clk 0:00:05.8]} 65... Rh3 {[%clk 0:00:05.4]}
66. Kf6 {[%clk 0:00:06.3]} 66... Rh4 {[%clk 0:00:05.7]} 67. b3 {[%clk 0:00:05]}
67... Rh3 {[%clk 0:00:05.7]} 68. Ba5 {[%clk 0:00:03.7]} 68... Rd3 {[%clk
0:00:05.4]} 69. Ke7 {[%clk 0:00:02.8]} 69... Kc6 {[%clk 0:00:05.3]} 70. Ke6
{[%clk 0:00:02.8]} 70... Re3+ {[%clk 0:00:05]} 71. Kf5 {[%clk 0:00:02.9]} 71...
Kd5 {[%clk 0:00:05.4]} 72. Kf4 {[%clk 0:00:03.5]} 72... Rd3 {[%clk 0:00:05.8]}
73. Kg4 {[%clk 0:00:03]} 73... Re3 {[%clk 0:00:05.7]} 74. Kg5 {[%clk 0:00:02.9]}
74... Rd3 {[%clk 0:00:05.7]} 75. Kf6 {[%clk 0:00:03.1]} 75... Re3 {[%clk
0:00:06]} 76. Kf7 {[%clk 0:00:03.2]} 76... Rd3 {[%clk 0:00:05.2]} 77. Ke7 {[%clk
0:00:03.5]} 77... Kc6 {[%clk 0:00:05.4]} 78. Ke6 {[%clk 0:00:03.3]} 78... Re3+
{[%clk 0:00:05.7]} 79. Kf5 {[%clk 0:00:04]} 79... Kd5 {[%clk 0:00:06]} 80. Kf4
{[%clk 0:00:04.6]} 80... Rd3 {[%clk 0:00:06.1]} 81. Bb4 {[%clk 0:00:05.1]} 81...
Rh3 {[%clk 0:00:04.9]} 82. Kg4 {[%clk 0:00:04.6]} 82... Rd3 {[%clk 0:00:04.8]}
83. a5 {[%clk 0:00:05]} 83... Rd4+ {[%clk 0:00:04.2]} 84. Kf3 {[%clk 0:00:04]}
84... Rxb4 {[%clk 0:00:04.9]} 85. Ke3 {[%clk 0:00:04.8]} 85... Rb5 {[%clk
0:00:05.2]} 86. Nb1 {[%clk 0:00:02.6]} 86... Rxa5 {[%clk 0:00:04.4]} 87. Kd3
{[%clk 0:00:03.3]} 87... Kc5 {[%clk 0:00:04.3]} 88. Kc3 {[%clk 0:00:03.4]} 88...
Ra2 {[%clk 0:00:04.4]} 89. Nd2 {[%clk 0:00:03.1]} 89... Ra1 {[%clk 0:00:04.2]}
90. Nc4 {[%clk 0:00:03.6]} 90... Rc1+ {[%clk 0:00:04]} 91. Kb2 {[%clk 0:00:04]}
91... Rh1 {[%clk 0:00:03.9]} 92. Ka3 {[%clk 0:00:04.4]} 92... Kb5 {[%clk
0:00:03.7]} 93. Nd6+ {[%clk 0:00:04.6]} 93... Kb6 {[%clk 0:00:03.9]} 94. Nc4+
{[%clk 0:00:04.9]} 94... Kc5 {[%clk 0:00:04.2]} 95. Ne5 {[%clk 0:00:05.4]} 95...
Ra1+ {[%clk 0:00:03.7]} 96. Kb2 {[%clk 0:00:05.6]} 96... Rf1 {[%clk 0:00:03.4]}
97. Ka3 {[%clk 0:00:05.6]} 97... Kb5 {[%clk 0:00:03.6]} 98. Nc4 {[%clk
0:00:04.9]} 98... Rf3 {[%clk 0:00:03.5]} 99. Nd6+ {[%clk 0:00:04.7]} 99... Kc5
{[%clk 0:00:02.9]} 100. Ne4+ {[%clk 0:00:05.3]} 100... Kb6 {[%clk 0:00:03.1]}
101. Nd2 {[%clk 0:00:06]} 101... Rh3 {[%clk 0:00:03]} 102. Nc4+ {[%clk
0:00:06.6]} 102... Kc5 {[%clk 0:00:03.1]} 103. Ne5 {[%clk 0:00:07.3]} 103... a5
{[%clk 0:00:02.4]} 104. Nd7+ {[%clk 0:00:07.9]} 104... Kb5 {[%clk 0:00:02.6]}
105. Kb2 {[%clk 0:00:05.2]} 105... Kb4 {[%clk 0:00:02.9]} 106. Nf6 {[%clk
0:00:03.9]} 106... Rxb3+ {[%clk 0:00:03.4]} 107. Ka2 {[%clk 0:00:04.5]} 107...
Rf3 {[%clk 0:00:04]} 108. Nd5+ {[%clk 0:00:04.4]} 108... Ka4 {[%clk 0:00:04]}
109. Nb6+ {[%clk 0:00:04.1]} 109... Kb5 {[%clk 0:00:03.4]} 110. Nc8 {[%clk
0:00:05]} 110... Kb4 {[%clk 0:00:02.8]} 111. Nb6 {[%clk 0:00:03.9]} 111... Rf2+
{[%clk 0:00:03.4]} 112. Kb1 {[%clk 0:00:04.2]} 112... a4 {[%clk 0:00:04]} 113.
Nd5+ {[%clk 0:00:04.3]} 113... Kb3 {[%clk 0:00:04.4]} 114. Kc1 {[%clk
0:00:03.5]} 114... a3 {[%clk 0:00:04.7]} 115. Kd1 {[%clk 0:00:03.8]} 115... a2
{[%clk 0:00:04.7]} 116. Ke1 {[%clk 0:00:03.7]} 116... Rh2 {[%clk 0:00:04.8]}
117. Ne3 {[%clk 0:00:03.2]} 117... a1=Q+ {[%clk 0:00:04.4]} 118. Nd1 {[%clk
0:00:03.9]} 118... Qb1 {[%clk 0:00:04.1]} 119. Kf1 {[%clk 0:00:04]} 119... Qxd1#
{[%clk 0:00:04.2]} 0-1

[Event "Late-Titled-Tuesday-Blitz-September-12-2023"]
[Site "Chess.com"]
[Date "2023.09.12"]
[Round "11"]
[White "laiciffOneslraCsungaM"]
[Black "APOKALIPSA13"]
[Result "1/2-1/2"]
[WhiteElo "2322"]
[BlackElo "2258"]
[TimeControl "180+1"]
[EndTime "15:55:25 PDT"]
[Termination "Game drawn by agreement"]

1. d4 {[%clk 0:03:00.9]} 1... e5 {[%clk 0:02:57.1]} 2. dxe5 {[%clk 0:03:00.7]}
2... Nc6 {[%clk 0:02:55.3]} 3. Nf3 {[%clk 0:02:59.2]} 3... Qe7 {[%clk
0:02:55.7]} 4. Nc3 {[%clk 0:02:50.9]} 4... Nxe5 {[%clk 0:02:55.6]} 5. Bf4 {[%clk
0:02:47.1]} 5... Nxf3+ {[%clk 0:02:54]} 6. gxf3 {[%clk 0:02:46.5]} 6... c6
{[%clk 0:02:54.9]} 7. Qd2 {[%clk 0:02:34.9]} 7... d5 {[%clk 0:02:52.9]} 8. O-O-O
{[%clk 0:02:34.8]} 8... Be6 {[%clk 0:02:46.2]} 9. e4 {[%clk 0:02:34.3]} 9...
O-O-O {[%clk 0:02:46.1]} 10. Qe3 {[%clk 0:02:30.5]} 10... Qc5 {[%clk 0:02:37.2]}
11. Qxc5 {[%clk 0:02:26.6]} 11... Bxc5 {[%clk 0:02:38.1]} 12. exd5 {[%clk
0:02:26.7]} 12... cxd5 {[%clk 0:02:30.3]} 1/2-1/2

[Event "Late-Titled-Tuesday-Blitz-September-12-2023"]
[Site "Chess.com"]
[Date "2023.09.12"]
[Round "11"]
[White "Vyacheslav_N"]
[Black "azikom"]
[Result "0-1"]
[WhiteElo "2472"]
[BlackElo "2649"]
[TimeControl "180+1"]
[EndTime "15:55:28 PDT"]
[Termination "azikom won by resignation"]

1. e4 {[%clk 0:02:59.6]} 1... c5 {[%clk 0:02:59.6]} 2. Nf3 {[%clk 0:02:59.7]}
2... d6 {[%clk 0:02:58.3]} 3. d4 {[%clk 0:02:59.8]} 3... cxd4 {[%clk 0:02:58.7]}
4. Qxd4 {[%clk 0:03:00.4]} 4... a6 {[%clk 0:02:58.2]} 5. c4 {[%clk 0:03:00.2]}
5... Nc6 {[%clk 0:02:58.6]} 6. Qd1 {[%clk 0:03:00.6]} 6... g6 {[%clk 0:02:57.9]}
7. Nc3 {[%clk 0:03:01]} 7... Bg7 {[%clk 0:02:58.4]} 8. Be2 {[%clk 0:03:01.7]}
8... Bxc3+ {[%clk 0:02:57.8]} 9. bxc3 {[%clk 0:03:01.6]} 9... Nf6 {[%clk
0:02:58]} 10. Qc2 {[%clk 0:03:00.8]} 10... Be6 {[%clk 0:02:55]} 11. Nd4 {[%clk
0:02:59.9]} 11... Rc8 {[%clk 0:02:51.8]} 12. Nxe6 {[%clk 0:02:55.9]} 12... fxe6
{[%clk 0:02:51.6]} 13. O-O {[%clk 0:02:56.3]} 13... Ne5 {[%clk 0:02:50.8]} 14.
Qb3 {[%clk 0:02:55.9]} 14... Qc7 {[%clk 0:02:49.3]} 15. f3 {[%clk 0:02:54.7]}
15... Nxc4 {[%clk 0:02:45.2]} 16. Bxc4 {[%clk 0:02:54.6]} 16... Qxc4 {[%clk
0:02:45.5]} 17. Qxb7 {[%clk 0:02:54.4]} 17... Qc6 {[%clk 0:02:45]} 18. Qa7
{[%clk 0:02:47.8]} 18... Kf7 {[%clk 0:02:41.7]} 19. Be3 {[%clk 0:02:46]} 19...
Qxc3 {[%clk 0:02:30.2]} 20. Rac1 {[%clk 0:02:39.4]} 20... Qa3 {[%clk 0:02:23.6]}
21. Qb7 {[%clk 0:02:37.7]} 21... Qxe3+ {[%clk 0:02:21.4]} 0-1

[Event "Late-Titled-Tuesday-Blitz-September-12-2023"]
[Site "Chess.com"]
[Date "2023.09.12"]
[Round "11"]
[White "Chessdreamer2020"]
[Black "andrzej"]
[Result "1-0"]
[WhiteElo "2525"]
[BlackElo "2439"]
[TimeControl "180+1"]
[EndTime "15:56:45 PDT"]
[Termination "Chessdreamer2020 won by checkmate"]

1. e4 {[%clk 0:02:55.6]} 1... e5 {[%clk 0:03:00]} 2. Nf3 {[%clk 0:02:55.3]} 2...
Nf6 {[%clk 0:03:00.6]} 3. Nxe5 {[%clk 0:02:54.8]} 3... d6 {[%clk 0:03:01.1]} 4.
Nc4 {[%clk 0:02:55.1]} 4... Nxe4 {[%clk 0:03:00.9]} 5. Be2 {[%clk 0:02:54.4]}
5... d5 {[%clk 0:02:56.6]} 6. Ne3 {[%clk 0:02:54]} 6... c6 {[%clk 0:02:52.8]} 7.
O-O {[%clk 0:02:53.9]} 7... Bd6 {[%clk 0:02:53.2]} 8. Nc3 {[%clk 0:02:53.6]}
8... Nf6 {[%clk 0:02:50.3]} 9. d4 {[%clk 0:02:52.5]} 9... O-O {[%clk 0:02:50.5]}
10. Bd3 {[%clk 0:02:52.8]} 10... Qc7 {[%clk 0:02:43.3]} 11. h3 {[%clk
0:02:51.2]} 11... Re8 {[%clk 0:02:40.8]} 12. Qf3 {[%clk 0:02:50.6]} 12... Nbd7
{[%clk 0:02:35.4]} 13. Nf5 {[%clk 0:02:50.2]} 13... Bf8 {[%clk 0:02:35.6]} 14.
Bf4 {[%clk 0:02:49.9]} 14... Qb6 {[%clk 0:02:34.1]} 15. b3 {[%clk 0:02:45.7]}
15... Ne4 {[%clk 0:02:27.5]} 16. Bxe4 {[%clk 0:02:33.3]} 16... dxe4 {[%clk
0:02:27.4]} 17. Nxe4 {[%clk 0:02:34.2]} 17... Qa5 {[%clk 0:02:13.1]} 18. Nfd6
{[%clk 0:02:28.4]} 18... Bxd6 {[%clk 0:02:12.5]} 19. Nxd6 {[%clk 0:02:28.2]}
19... Rf8 {[%clk 0:02:12.8]} 20. Rfe1 {[%clk 0:02:22.3]} 20... Nf6 {[%clk
0:02:09.7]} 21. Be5 {[%clk 0:02:12.8]} 21... Nd5 {[%clk 0:01:52.9]} 22. Bxg7
{[%clk 0:02:07.8]} 22... Kxg7 {[%clk 0:01:46.8]} 23. Qg3+ {[%clk 0:02:08]} 23...
Kh8 {[%clk 0:01:44.7]} 24. Nxf7+ {[%clk 0:02:07.6]} 24... Rxf7 {[%clk
0:01:43.3]} 25. Re8+ {[%clk 0:02:07.7]} 25... Rf8 {[%clk 0:01:43.3]} 26. Rxf8#
{[%clk 0:02:07.9]} 1-0

[Event "Late-Titled-Tuesday-Blitz-September-12-2023"]
[Site "Chess.com"]
[Date "2023.09.12"]
[Round "11"]
[White "ozates"]
[Black "ckgchess"]
[Result "0-1"]
[WhiteElo "2584"]
[BlackElo "2895"]
[TimeControl "180+1"]
[EndTime "15:57:13 PDT"]
[Termination "ckgchess won by checkmate"]

1. e4 {[%clk 0:03:00.9]} 1... e5 {[%clk 0:03:00.4]} 2. Nf3 {[%clk 0:03:00.9]}
2... Nf6 {[%clk 0:03:01]} 3. Nxe5 {[%clk 0:03:00.8]} 3... d5 {[%clk 0:03:01.6]}
4. exd5 {[%clk 0:02:54.3]} 4... Qxd5 {[%clk 0:03:02.5]} 5. Nf3 {[%clk
0:02:52.9]} 5... Nc6 {[%clk 0:03:01.8]} 6. d4 {[%clk 0:02:47.6]} 6... Bg4 {[%clk
0:03:00.2]} 7. Be3 {[%clk 0:02:46.2]} 7... O-O-O {[%clk 0:02:55.7]} 8. Be2
{[%clk 0:02:44.3]} 8... Bd6 {[%clk 0:02:39.8]} 9. c4 {[%clk 0:02:41.3]} 9... Qh5
{[%clk 0:02:36.1]} 10. Nc3 {[%clk 0:02:39.1]} 10... Rhe8 {[%clk 0:02:33.5]} 11.
d5 {[%clk 0:02:36.1]} 11... Ne5 {[%clk 0:02:15.6]} 12. Nxe5 {[%clk 0:02:11.2]}
12... Bxe5 {[%clk 0:02:16.5]} 13. h3 {[%clk 0:02:09.7]} 13... Bxc3+ {[%clk
0:01:55.3]} 14. bxc3 {[%clk 0:02:09.4]} 14... Rxe3 {[%clk 0:01:30]} 15. fxe3
{[%clk 0:02:10.3]} 15... Qh4+ {[%clk 0:01:30.4]} 16. Kf1 {[%clk 0:01:54.3]}
16... Bd7 {[%clk 0:01:23.5]} 17. Qd4 {[%clk 0:01:40.3]} 17... Ne4 {[%clk
0:01:20.9]} 18. Bf3 {[%clk 0:01:39.4]} 18... Qf2# {[%clk 0:01:20.7]} 0-1

[Event "Late-Titled-Tuesday-Blitz-September-12-2023"]
[Site "Chess.com"]
[Date "2023.09.12"]
[Round "11"]
[White "Aleksandar-Topalov"]
[Black "dennisodessa"]
[Result "1-0"]
[WhiteElo "2388"]
[BlackElo "2501"]
[TimeControl "180+1"]
[EndTime "15:57:25 PDT"]
[Termination "Aleksandar-Topalov won by resignation"]

1. b3 {[%clk 0:03:00.9]} 1... e5 {[%clk 0:02:56]} 2. Bb2 {[%clk 0:03:00.6]} 2...
Nc6 {[%clk 0:02:56.6]} 3. c4 {[%clk 0:03:00.5]} 3... Nf6 {[%clk 0:02:54]} 4. e3
{[%clk 0:03:00.4]} 4... d5 {[%clk 0:02:53.5]} 5. cxd5 {[%clk 0:03:00.6]} 5...
Nxd5 {[%clk 0:02:54.2]} 6. a3 {[%clk 0:03:01.1]} 6... Be7 {[%clk 0:02:51]} 7.
Qc2 {[%clk 0:03:00.5]} 7... Be6 {[%clk 0:02:44.1]} 8. Nf3 {[%clk 0:03:00.2]}
8... f6 {[%clk 0:02:44.3]} 9. Be2 {[%clk 0:02:59.5]} 9... O-O {[%clk 0:02:38.5]}
10. O-O {[%clk 0:02:59.6]} 10... Qd7 {[%clk 0:02:34.9]} 11. d3 {[%clk
0:02:59.4]} 11... Rac8 {[%clk 0:02:31.6]} 12. Nbd2 {[%clk 0:02:58.7]} 12... Rfd8
{[%clk 0:02:23.8]} 13. Rfd1 {[%clk 0:02:57.9]} 13... Qe8 {[%clk 0:02:20.5]} 14.
Rac1 {[%clk 0:02:55.2]} 14... Qf7 {[%clk 0:02:19.9]} 15. b4 {[%clk 0:02:51.5]}
15... Nb6 {[%clk 0:02:14.1]} 16. d4 {[%clk 0:02:45.2]} 16... exd4 {[%clk
0:02:11.6]} 17. Nxd4 {[%clk 0:02:45.4]} 17... Nxd4 {[%clk 0:02:10]} 18. Bxd4
{[%clk 0:02:45.5]} 18... Nd7 {[%clk 0:01:55.5]} 19. Bd3 {[%clk 0:02:38.8]} 19...
c5 {[%clk 0:01:45.6]} 20. bxc5 {[%clk 0:02:36.2]} 20... Nxc5 {[%clk 0:01:44.1]}
21. Bxh7+ {[%clk 0:02:36.1]} 21... Kh8 {[%clk 0:01:40.9]} 22. Bg6 {[%clk
0:02:36.4]} 22... Qg8 {[%clk 0:01:32.9]} 23. Bxc5 {[%clk 0:02:29.6]} 23... Rxc5
{[%clk 0:01:27.8]} 24. Qe4 {[%clk 0:02:26.8]} 24... f5 {[%clk 0:01:28.4]} 25.
Qf3 {[%clk 0:02:07.7]} 1-0

[Event "Late-Titled-Tuesday-Blitz-September-12-2023"]
[Site "Chess.com"]
[Date "2023.09.12"]
[Round "11"]
[White "IMGC"]
[Black "Alexei_Gubajdullin"]
[Result "0-1"]
[WhiteElo "2442"]
[BlackElo "2614"]
[TimeControl "180+1"]
[EndTime "15:57:28 PDT"]
[Termination "Alexei_Gubajdullin won by resignation"]

1. d4 {[%clk 0:03:00.9]} 1... Nf6 {[%clk 0:02:59.6]} 2. Nf3 {[%clk 0:03:00]}
2... g6 {[%clk 0:02:59.5]} 3. e3 {[%clk 0:02:58.8]} 3... Bg7 {[%clk 0:02:59.5]}
4. Be2 {[%clk 0:02:59.7]} 4... O-O {[%clk 0:02:59.3]} 5. O-O {[%clk 0:03:00.6]}
5... d6 {[%clk 0:02:59.6]} 6. c4 {[%clk 0:03:01.4]} 6... Nc6 {[%clk 0:02:59.6]}
7. b3 {[%clk 0:03:02]} 7... Nd7 {[%clk 0:02:59.5]} 8. Bb2 {[%clk 0:03:02.5]}
8... e5 {[%clk 0:02:58.9]} 9. dxe5 {[%clk 0:03:00.2]} 9... dxe5 {[%clk
0:02:58.9]} 10. Nc3 {[%clk 0:02:59.3]} 10... e4 {[%clk 0:02:58.3]} 11. Nd4
{[%clk 0:02:56.2]} 11... Nxd4 {[%clk 0:02:49.5]} 12. exd4 {[%clk 0:02:57.1]}
12... f5 {[%clk 0:02:49.4]} 13. Re1 {[%clk 0:02:55.8]} 13... Nf6 {[%clk
0:02:40.7]} 14. Bf1 {[%clk 0:02:54.7]} 14... Ng4 {[%clk 0:02:40.5]} 15. h3
{[%clk 0:02:41]} 15... Nxf2 {[%clk 0:02:40.1]} 16. Kxf2 {[%clk 0:02:41.2]} 16...
Bxd4+ {[%clk 0:02:37.9]} 17. Ke2 {[%clk 0:02:41.1]} 17... f4 {[%clk 0:02:35]}
18. Qd2 {[%clk 0:02:23.4]} 18... e3 {[%clk 0:02:03.7]} 19. Qd1 {[%clk 0:02:07]}
19... c5 {[%clk 0:01:27.3]} 20. Na4 {[%clk 0:02:02.4]} 20... Bxh3 {[%clk
0:01:18.7]} 21. gxh3 {[%clk 0:01:50.6]} 21... f3+ {[%clk 0:01:18]} 22. Kd3
{[%clk 0:01:48.5]} 22... Bxb2+ {[%clk 0:01:17.6]} 23. Kc2 {[%clk 0:01:49.1]}
23... Bxa1 {[%clk 0:01:16.2]} 24. Qxa1 {[%clk 0:01:49.4]} 24... Qd2+ {[%clk
0:01:14.2]} 0-1

[Event "Late-Titled-Tuesday-Blitz-September-12-2023"]
[Site "Chess.com"]
[Date "2023.09.12"]
[Round "11"]
[White "RichardLeyvaP"]
[Black "zverr1"]
[Result "0-1"]
[WhiteElo "2624"]
[BlackElo "2523"]
[TimeControl "180+1"]
[EndTime "15:58:37 PDT"]
[Termination "zverr1 won by resignation"]

1. e4 {[%clk 0:03:00.9]} 1... c5 {[%clk 0:02:59.3]} 2. Nf3 {[%clk 0:03:00.7]}
2... d6 {[%clk 0:02:59.8]} 3. d4 {[%clk 0:03:01]} 3... cxd4 {[%clk 0:03:00.5]}
4. Nxd4 {[%clk 0:03:01.8]} 4... Nf6 {[%clk 0:03:01.2]} 5. Nc3 {[%clk 0:03:02.1]}
5... a6 {[%clk 0:03:01.8]} 6. Bc4 {[%clk 0:03:01.7]} 6... e6 {[%clk 0:03:01.8]}
7. Bb3 {[%clk 0:03:01.9]} 7... Nbd7 {[%clk 0:03:00.7]} 8. Bg5 {[%clk 0:03:01.3]}
8... Nc5 {[%clk 0:02:55.2]} 9. Qe2 {[%clk 0:03:01.2]} 9... Be7 {[%clk
0:02:53.7]} 10. O-O-O {[%clk 0:03:00.8]} 10... Nfxe4 {[%clk 0:02:36.7]} 11. Bxe7
{[%clk 0:02:52.5]} 11... Nxc3 {[%clk 0:02:33.5]} 12. Qg4 {[%clk 0:02:44.1]}
12... Qxe7 {[%clk 0:02:03.5]} 13. Qxg7 {[%clk 0:02:43.9]} 13... Qf8 {[%clk
0:01:56.4]} 14. Qxf8+ {[%clk 0:02:43.8]} 14... Kxf8 {[%clk 0:01:55.1]} 15. bxc3
{[%clk 0:02:44.7]} 15... Rg8 {[%clk 0:01:48.2]} 16. g3 {[%clk 0:02:44.9]} 16...
Ne4 {[%clk 0:01:46.3]} 17. Rdf1 {[%clk 0:02:38.6]} 17... Nxc3 {[%clk 0:01:44.7]}
18. f4 {[%clk 0:02:35.6]} 18... d5 {[%clk 0:01:31.7]} 19. Kb2 {[%clk 0:02:31.9]}
19... Ne4 {[%clk 0:01:31.6]} 20. Re1 {[%clk 0:02:29.9]} 20... f5 {[%clk
0:01:26.4]} 21. c4 {[%clk 0:02:28.1]} 21... Nf2 {[%clk 0:01:17.7]} 22. cxd5
{[%clk 0:02:28]} 22... Nxh1 {[%clk 0:01:14.5]} 23. Rxh1 {[%clk 0:02:21.7]} 23...
exd5 {[%clk 0:01:10.1]} 24. Re1 {[%clk 0:02:20.8]} 24... Rg7 {[%clk 0:01:05.4]}
25. Re5 {[%clk 0:02:20.7]} 25... Re7 {[%clk 0:01:00.9]} 26. Rxd5 {[%clk
0:02:20.9]} 26... Bd7 {[%clk 0:00:53.3]} 27. Nxf5 {[%clk 0:02:20.5]} 27... Bxf5
{[%clk 0:00:51.7]} 28. Rxf5+ {[%clk 0:02:20.7]} 28... Kg7 {[%clk 0:00:52]} 29.
Ka3 {[%clk 0:02:17.4]} 29... h6 {[%clk 0:00:48.6]} 30. Rc5 {[%clk 0:02:09.4]}
30... Rd8 {[%clk 0:00:47.7]} 31. f5 {[%clk 0:02:01.6]} 31... Rd2 {[%clk
0:00:45.3]} 32. h4 {[%clk 0:02:01.4]} 32... Rg2 {[%clk 0:00:41.3]} 33. Rc3
{[%clk 0:02:00.3]} 33... Kf6 {[%clk 0:00:38.1]} 34. Be6 {[%clk 0:01:59.9]} 34...
Rg7 {[%clk 0:00:36.1]} 35. Kb4 {[%clk 0:01:56.3]} 35... R2xg3 {[%clk 0:00:35.2]}
36. Rc8 {[%clk 0:01:56.1]} 36... R7g4+ {[%clk 0:00:33.7]} 37. Kc5 {[%clk
0:01:56.2]} 37... Rc3+ {[%clk 0:00:34]} 0-1

[Event "Late-Titled-Tuesday-Blitz-September-12-2023"]
[Site "Chess.com"]
[Date "2023.09.12"]
[Round "11"]
[White "fyall777"]
[Black "younix2022"]
[Result "1-0"]
[WhiteElo "2561"]
[BlackElo "2059"]
[TimeControl "180+1"]
[EndTime "15:58:38 PDT"]
[Termination "fyall777 won on time"]

1. d4 {[%clk 0:02:43.1]} 1... d5 {[%clk 0:02:58.2]} 2. c4 {[%clk 0:02:44]} 2...
dxc4 {[%clk 0:02:57.7]} 3. Nf3 {[%clk 0:02:44.9]} 3... c6 {[%clk 0:02:57.5]} 4.
e4 {[%clk 0:02:45.8]} 4... b5 {[%clk 0:02:57.1]} 5. Bxc4 {[%clk 0:02:46.7]} 5...
bxc4 {[%clk 0:02:56.7]} 6. Ne5 {[%clk 0:02:45.5]} 6... Qa5+ {[%clk 0:02:48.8]}
7. Nc3 {[%clk 0:02:44.1]} 7... e6 {[%clk 0:02:43.5]} 8. Qh5 {[%clk 0:02:40.4]}
8... g6 {[%clk 0:02:37.1]} 9. Qf3 {[%clk 0:02:37.2]} 9... Qc7 {[%clk 0:02:21.6]}
10. Bf4 {[%clk 0:02:35.2]} 10... Bd6 {[%clk 0:02:10.5]} 11. Nxf7 {[%clk
0:02:33]} 11... Bxf4 {[%clk 0:01:59.3]} 12. Nxh8 {[%clk 0:02:32.5]} 12... Bh6
{[%clk 0:01:51.2]} 13. e5 {[%clk 0:02:32.3]} 13... Bg7 {[%clk 0:01:51.1]} 14.
Ne4 {[%clk 0:02:32.4]} 14... Bxh8 {[%clk 0:01:35.2]} 15. Nd6+ {[%clk 0:02:32.2]}
15... Qxd6 {[%clk 0:01:29]} 16. exd6 {[%clk 0:02:31]} 16... Nd7 {[%clk
0:01:26.9]} 17. Qxc6 {[%clk 0:02:27.1]} 17... Rb8 {[%clk 0:01:23.3]} 18. O-O
{[%clk 0:02:26.6]} 18... Bxd4 {[%clk 0:01:16.4]} 19. Rae1 {[%clk 0:02:23.8]}
19... e5 {[%clk 0:01:03.4]} 20. Qxc4 {[%clk 0:02:23.2]} 20... Ngf6 {[%clk
0:00:51.1]} 21. Qxd4 {[%clk 0:02:22.4]} 21... Kf7 {[%clk 0:00:27.3]} 22. Rxe5
{[%clk 0:02:21.2]} 22... Nxe5 {[%clk 0:00:22.3]} 23. Qxe5 {[%clk 0:02:20.8]}
23... Rb7 {[%clk 0:00:21.6]} 24. Re1 {[%clk 0:02:17.2]} 24... Bf5 {[%clk
0:00:12.8]} 25. h3 {[%clk 0:02:16.5]} 25... h5 {[%clk 0:00:10.4]} 26. b4 {[%clk
0:02:07.1]} 26... Rd7 {[%clk 0:00:03.9]} 27. b5 {[%clk 0:02:04.7]} 27... h4
{[%clk 0:00:04]} 28. a4 {[%clk 0:02:02.7]} 1-0